fUSD/lending_fUSD_20240105
["ID","MTS","AMOUNT","RATE_DAILY","PERIOD"]
[310348218,1704486651936,-500.0,0.0003041,2]
[310348219,1704486651948,-500.0,0.0003041,2]
[310348220,1704486651960,-500.0,0.0003041,2]
[310348221,1704486651974,-500.0,0.0003041,2]
[310348222,1704486651988,-610.32,0.0003041,2]
[310348223,1704486652001,-500.0,0.0003041,2]
[310348224,1704486652015,-500.0,0.0003041,2]
[310348225,1704486652028,-500.0,0.0003041,2]
[310348226,1704486652041,-500.0,0.0003041,2]
[310348227,1704486652053,-520.59380299,0.0003041,2]
[310348228,1704486652063,-500.0,0.0003041,2]
[310348229,1704486652073,-621.24803671,0.0003041,2]
[310348230,1704486652085,-500.0,0.0003041,2]
[310348231,1704486652098,-500.0,0.0003041,2]
[310348232,1704486652110,-500.0,0.0003041,2]
[310348233,1704486652123,-500.0,0.0003041,2]
[310348234,1704486652135,-614.20377682,0.0003041,2]
[310348235,1704486652145,-500.0,0.0003041,2]
[310348236,1704486652156,-500.0,0.0003041,2]
[310348237,1704486652167,-500.0,0.0003041,2]
[310348238,1704486652178,-500.0,0.0003041,2]
[310348239,1704486652190,-500.0,0.0003041,2]
[310348240,1704486652201,-500.0,0.0003041,2]
[310348241,1704486652212,-235.91,0.0003041,2]
[310348242,1704486652223,-500.0,0.0003041,2]
[310348243,1704486652235,-500.0,0.0003041,2]
[310348244,1704486652247,-210.25202542,0.0003041,2]
[310348245,1704486652259,-500.0,0.0003041,2]
[310348246,1704486652270,-500.0,0.0003041,2]
[310348247,1704486652282,-500.0,0.0003041,2]
[310348248,1704486652294,-1026.59,0.0003041,2]
[310348249,1704486652306,-500.0,0.0003041,2]
[310348250,1704486652317,-500.0,0.0003041,2]
[310348251,1704486652328,-500.0,0.0003041,2]
[310348252,1704486652344,-500.0,0.0003041,2]
[310348253,1704486652359,-500.0,0.0003041,2]
[310348254,1704486652371,-528.73,0.0003041,2]
[310348255,1704486652382,-500.0,0.0003041,2]
[310348256,1704486652394,-500.0,0.0003041,2]
[310348257,1704486652406,-538.68,0.0003041,2]
[310348258,1704486652417,-500.0,0.0003041,2]
[310348259,1704486652429,-500.0,0.0003041,2]
[310348260,1704486652440,-500.0,0.0003041,2]
[310348261,1704486652450,-500.0,0.0003041,2]
[310348262,1704486652462,-181.42609911,0.0003041,2]
[310348263,1704486652473,-500.0,0.0003041,2]
[310348264,1704486652484,-500.0,0.0003041,2]
[310348265,1704486652496,-500.0,0.0003041,2]
[310348266,1704486652508,-500.0,0.0003041,2]
[310348267,1704486652518,-500.0,0.0003041,2]
[310348268,1704486652530,-500.0,0.0003041,2]
[310348269,1704486652541,-500.0,0.0003041,2]
[310348270,1704486652553,-500.0,0.0003041,2]
[310348271,1704486652564,-500.0,0.0003041,2]
[310348272,1704486652575,-500.0,0.0003041,2]
[310348273,1704486652587,-500.0,0.0003041,2]
[310348274,1704486652598,-500.0,0.0003041,2]
[310348275,1704486652610,-528.86116849,0.0003041,2]
[310348276,1704486652620,-500.0,0.0003041,2]
[310348277,1704486652632,-208.3866073,0.0003041,2]
[310348278,1704486652644,-500.0,0.0003041,2]
[310348279,1704486652656,-500.0,0.0003041,2]
[310348280,1704486652668,-500.0,0.0003041,2]
[310348281,1704486652679,-500.0,0.0003041,2]
[310348282,1704486652690,-431.81263511,0.0003041,2]
[310348283,1704486652702,-500.0,0.0003041,2]
[310348284,1704486652714,-500.0,0.0003041,2]
[310348285,1704486652725,-500.0,0.0003041,2]
[310348286,1704486652736,-500.0,0.0003041,2]
[310348287,1704486652747,-500.0,0.0003041,2]
[310348288,1704486652759,-500.0,0.0003041,2]
[310348289,1704486652770,-500.0,0.0003041,2]
[310348290,1704486652781,-500.0,0.0003041,2]
[310348291,1704486652792,-517.58168269,0.0003041,2]
[310348292,1704486652804,-2389.16,0.0003041,2]
[310348293,1704486652816,-500.0,0.0003041,2]
[310348294,1704486652827,-500.0,0.0003041,2]
[310348295,1704486652839,-500.0,0.0003041,2]
[310348296,1704486652851,-500.0,0.0003041,2]
[310348297,1704486652862,-500.0,0.0003041,2]
[310348298,1704486652873,-500.0,0.0003041,2]
[310348299,1704486652885,-500.0,0.0003041,2]
[310348300,1704486652897,-500.0,0.0003041,2]
[310348301,1704486652908,-500.0,0.0003041,2]
[310348302,1704486652920,-2297.43,0.0003041,2]
[310348303,1704486652932,-286.15448934,0.0003041,2]
[310348304,1704486652944,-764.5,0.0003041,2]
[310348305,1704486652955,-500.0,0.0003041,2]
[310348306,1704486652967,-746.53,0.0003041,2]
[310348307,1704486652978,-500.0,0.0003041,2]
[310348308,1704486652989,-500.0,0.0003041,2]
[310348309,1704486653001,-500.0,0.0003041,2]
[310348310,1704486653013,-500.0,0.0003041,2]
[310348311,1704486653025,-500.0,0.0003041,2]
[310348312,1704486653036,-3103.05,0.0003041,2]
[310348313,1704486653047,-500.0,0.0003041,2]
[310348314,1704486653058,-500.0,0.0003041,2]
[310348315,1704486653070,-664.29,0.0003041,2]
[310348316,1704486653081,-1544.08,0.0003041,2]
[310348317,1704486653092,-550.02,0.0003041,2]
[310348318,1704486653104,-2114.1,0.0003041,2]
[310348319,1704486653116,-500.0,0.0003041,2]
[310348320,1704486653126,-500.0,0.0003041,2]
[310348321,1704486653138,-500.0,0.0003041,2]
[310348322,1704486653149,-450.0,0.0003041,2]
[310348323,1704486653160,-534.59,0.0003041,2]
[310348324,1704486653172,-500.0,0.0003041,2]
[310348325,1704486653183,-500.0,0.0003041,2]
[310348326,1704486653194,-500.0,0.0003041,2]
[310348327,1704486653205,-500.0,0.0003041,2]
[310348328,1704486653216,-500.0,0.0003041,2]
[310348329,1704486653227,-1557.86,0.0003041,2]
[310348330,1704486653238,-500.0,0.0003041,2]
[310348331,1704486653250,-500.0,0.0003041,2]
[310348332,1704486653261,-500.0,0.0003041,2]
[310348333,1704486653272,-500.0,0.0003041,2]
[310348334,1704486653284,-166.19828945,0.0003041,2]
[310348335,1704486653295,-500.0,0.0003041,2]
[310348336,1704486653306,-235.2307604,0.0003041,2]
[310348337,1704486653317,-500.0,0.0003041,2]
[310348338,1704486653328,-8915.03,0.0003041,2]
[310348339,1704486653347,-615.97393886,0.0003041,2]
[310348340,1704486653358,-914.65,0.0003041,2]
[310348341,1704486653376,-500.0,0.0003041,2]
[310348342,1704486653387,-503.27,0.0003041,2]
[310348343,1704486653399,-500.0,0.0003041,2]
[310348344,1704486653410,-5591.14,0.0003041,2]
[310348345,1704486653422,-500.0,0.0003041,2]
[310348346,1704486653433,-500.0,0.0003041,2]
[310348347,1704486653444,-500.0,0.0003041,2]
[310348348,1704486653456,-500.0,0.0003041,2]
[310348349,1704486653468,-523.18,0.0003041,2]
[310348350,1704486653479,-3705.59,0.0003041,2]
[310348351,1704486653490,-582.07,0.0003041,2]
[310348352,1704486653501,-1456.27,0.0003041,2]
[310348353,1704486653513,-500.0,0.0003041,2]
[310348354,1704486653524,-500.0,0.0003041,2]
[310348355,1704486653535,-500.0,0.0003041,2]
[310348356,1704486653547,-690.58,0.0003041,2]
[310348357,1704486653558,-398.00003993,0.0003041,2]
[310348358,1704486653570,-909.04,0.0003041,2]
[310348359,1704486653581,-500.0,0.0003041,2]
[310348360,1704486653592,-564.45,0.0003041,2]
[310348361,1704486653607,-636.25,0.0003041,2]
[310348362,1704486653618,-500.0,0.0003041,2]
[310348363,1704486653630,-193.56,0.0003041,2]
[310348364,1704486653643,-500.0,0.0003041,2]
[310348365,1704486653654,-725.15,0.0003041,2]
[310348366,1704486653665,-769.83,0.0003041,2]
[310348367,1704486653677,-500.0,0.0003041,2]
[310348368,1704486653689,-553.59,0.0003041,2]
[310348369,1704486653701,-525.66776646,0.0003041,2]
[310348370,1704486653711,-500.0,0.0003041,2]
[310348371,1704486653723,-500.0,0.0003041,2]
[310348372,1704486653734,-4290.99,0.0003041,2]
[310348373,1704486653744,-951.82,0.0003041,2]
[310348374,1704486653756,-2342.18,0.0003041,2]
[310348375,1704486653766,-2724.77,0.0003041,2]
[310348376,1704486653778,-500.0,0.0003041,2]
[310348377,1704486653789,-500.0,0.0003041,2]
[310348378,1704486653800,-2895.97,0.0003041,2]
[310348379,1704486653812,-500.0,0.0003041,2]
[310348380,1704486653823,-500.0,0.0003041,2]
[310348381,1704486653835,-733.98,0.0003041,2]
[310348382,1704486653846,-1457.25119369,0.0003041,2]
[310348383,1704486654875,-267.89736832,0.00030136,2]
[310348384,1704486655095,-644.99705917,0.00028998,5]
[310348385,1704486655233,-111.00294083,0.00028998,5]
[310348386,1704486655244,-232.10263168,0.00030136,2]
[310348387,1704486655254,-500.0,0.00030136,2]
[310348388,1704486655263,-345.69880631,0.0003041,2]
[310348389,1704486655273,-522.08,0.0003041,2]
[310348390,1704486655284,-500.0,0.0003041,2]
[310348391,1704486655293,-578.33004325,0.0003041,2]
[310348392,1704486655532,-1864.92716263,0.0003041,2]
[310348393,1704486655866,-367.3736292,0.00029968,2]
[310348394,1704486655879,-33.0863708,0.00029968,2]
[310348395,1704486655890,-199.36528937,0.00030135,4]
[310348396,1704486655903,-150.01,0.00030135,2]
[310348397,1704486655912,-1803.33833983,0.00030135,2]
[310348398,1704486655924,-706.18106583,0.00030135,2]
[310348399,1704486655937,-777.41526217,0.00030135,2]
[310348400,1704486655948,-351.88573253,0.0003041,2]
[310348401,1704486655960,-258.95706159,0.0003041,2]
[310348402,1704486655970,-120.84905858,0.0003041,2]
[310348403,1704486757898,158.11,0.00021762,2]
[310348404,1704486758156,158.11,0.00021944,2]
[310348405,1704486758540,158.11,0.00022125,2]
[310348406,1704486759292,158.11,0.00022306,2]
[310348407,1704486759466,158.11,0.00022488,2]
[310348408,1704486759615,158.11,0.00022669,2]
[310348409,1704486759846,158.11,0.0002285,2]
[310348410,1704486774737,293.51,0.00021854,2]
[310348411,1704486774951,293.51,0.00022832,2]
[310348412,1704486802749,15667.99021026,0.00022832,2]
[310348413,1704486804042,7407.36299805,0.00022832,2]
[310348414,1704486805088,1878.95732374,0.00022832,2]
[310348415,1704486810972,844.6351422,0.00022832,2]
[310348416,1704486811497,401.33443971,0.00022147,2]
[310348417,1704486812435,1595.66540004,0.00018266,2]
[310348418,1704486820000,4321.55502472,0.00022832,2]
[310348419,1704486820751,15667.99021026,0.00022832,2]
[310348420,1704486821354,1878.95732374,0.00022832,2]
[310348421,1704486822911,844.6351422,0.00022832,2]
[310348422,1704486824709,1595.66540004,0.00018266,2]
[310348423,1704486833500,307.31975824,0.00022147,2]
[310348424,1704486840924,753.59176849,0.00022832,2]
[310348425,1704486842747,1435.49412312,0.00022832,2]
[310348426,1704486842783,14433.56312417,0.00022832,2]
[310348427,1704486843704,1878.95732374,0.00022832,2]
[310348428,1704486843841,1020.56378197,0.00022832,2]
[310348429,1704486844030,205.0,0.00022937,2]
[310348430,1704486844411,1030.96098398,0.00022832,2]
[310348431,1704486844443,18922.07955706,0.00022832,2]
[310348432,1704486844536,1094.91415065,0.00022832,2]
[310348433,1704486844710,5179.19589218,0.00022832,2]
[310348434,1704486845886,230.98443725,0.00022832,2]
[310348435,1704486846430,1595.66540004,0.00018266,2]
[310348436,1704486846579,312.71329896,0.00022832,2]
[310348437,1704486846606,256.17604664,0.00022832,2]
[310348438,1704486846885,852.10658758,0.00022832,4]
[310348439,1704486848165,271.43341545,0.00022832,2]
[310348440,1704486848386,531.16034325,0.00022832,2]
[310348441,1704486848486,291.41637742,0.00022832,2]
[310348442,1704486849005,233.75877013,0.00022831,2]
[310348443,1704486849658,520.23298241,0.00022832,2]
[310348444,1704486850120,854.8821237,0.00022832,2]
[310348445,1704486850913,542.92826208,0.00022832,2]
[310348446,1704486851105,500.0,0.00022832,2]
[310348447,1704486851299,208.62686869,0.00022832,2]
[310348448,1704486851484,987.96121451,0.00022832,2]
[310348449,1704486851990,283.54919888,0.00022832,2]
[310348450,1704486852024,5689.54923047,0.00022832,2]
[310348451,1704486852228,6068.96581964,0.00022832,2]
[310348452,1704486853020,14327.872814,0.00022911,2]
[310348453,1704486853060,282.07277514,0.00022832,2]
[310348454,1704486853503,401.33443971,0.00022147,2]
[310348455,1704486854552,1161.79445741,0.00022604,2]
[310348456,1704486854998,282.49526123,0.00022832,2]
[310348457,1704486855029,176.80967753,0.00022832,2]
[310348458,1704486855606,883.00753991,0.00022832,2]
[310348459,1704486855901,388.16714743,0.00022832,2]
[310348460,1704486856800,159.41271011,0.00022927,2]
[310348461,1704486857161,532.01558641,0.00022832,2]
[310348462,1704486857637,1233.76827622,0.00022832,2]
[310348463,1704486858762,15667.99021026,0.00022832,2]
[310348464,1704486858936,254.56449951,0.00022832,2]
[310348465,1704486860922,844.6351422,0.00022832,2]
[310348466,1704486861109,1878.95732374,0.00022832,2]
[310348467,1704486861595,558.64,0.00021762,2]
[310348468,1704486862473,18922.07955706,0.00022832,2]
[310348469,1704486862563,1094.91415065,0.00022832,2]
[310348470,1704486862703,5179.19589218,0.00022832,2]
[310348471,1704486864407,1030.96098398,0.00022832,2]
[310348472,1704486864434,291.41637742,0.00022832,2]
[310348473,1704486866326,6922.84243509,0.00022718,2]
[310348474,1704486868624,312.71329896,0.00022832,2]
[310348475,1704486869614,340.90147785,0.00022832,2]
[310348476,1704486870461,1595.66540004,0.00018266,2]
[310348477,1704486870908,542.92826208,0.00022832,2]
[310348478,1704486870998,176.80967753,0.00022832,2]
[310348479,1704486872759,15667.99021026,0.00022832,2]
[310348480,1704486872988,282.49526123,0.00022832,2]
[310348481,1704486875509,401.33443971,0.00022147,2]
[310348482,1704486876909,418.15502189,0.00022832,2]
[310348483,1704486877010,282.07277514,0.00022832,2]
[310348484,1704486877165,532.01558641,0.00022832,2]
[310348485,1704486878408,1030.96098398,0.00022832,2]
[310348486,1704486878551,1094.16742942,0.00022832,2]
[310348487,1704486878694,2004.46273701,0.00022832,2]
[310348488,1704486879641,1233.76827622,0.00022832,2]
[310348489,1704486880430,292.38487776,0.00022832,2]
[310348490,1704486882406,531.16034325,0.00022832,2]
[310348491,1704486884950,250.0,0.000192,2]
[310348492,1704486885111,1878.95732374,0.00022832,2]
[310348493,1704486886435,1595.66540004,0.00018266,2]
[310348494,1704486888593,237.71749116,0.00022832,2]
[310348495,1704486888919,542.92826208,0.00022832,2]
[310348496,1704486889004,176.80967753,0.00022832,2]
[310348497,1704486890758,15667.99021026,0.00022832,2]
[310348498,1704486890902,244.83692434,0.00022832,2]
[310348499,1704486896427,1030.96098398,0.00022832,2]
[310348500,1704486899641,1233.76827622,0.00022832,2]
[310348501,1704486900405,531.16034325,0.00022832,2]
[310348502,1704486901106,1878.95732374,0.00022832,2]
[310348503,1704486904446,1595.66540004,0.00018266,2]
[310348504,1704486906918,540.17466176,0.00022832,2]
[310348505,1704486907004,176.80967753,0.00022832,2]
[310348506,1704486910767,15667.99021026,0.00022832,2]
[310348507,1704486916411,1030.96098398,0.00022832,2]
[310348508,1704486920141,1233.76827622,0.00022832,2]
[310348509,1704486920406,530.52748991,0.00022832,2]
[310348510,1704486921133,1878.95732374,0.00022832,2]
[310348511,1704486926454,607.66278272,0.00018266,2]
[310348512,1704486926795,15667.99021026,0.00022832,2]
[310348513,1704486926998,161.88813441,0.00022832,2]
[310348514,1704486938178,1233.76827622,0.00022832,2]
[310348515,1704486938421,1030.96098398,0.00022832,2]
[310348516,1704486945120,1564.96564081,0.00022832,2]
[310348517,1704486947049,4155.23302507,0.00022832,2]
[310348518,1704486958147,1233.76827622,0.00022832,2]
[310348519,1704486962423,1028.72885118,0.00022832,2]
[310348520,1704486974154,737.20444847,0.00022832,2]
[310348521,1704487001867,163.15804489,0.00022911,2]
[310348522,1704487019829,157.58,0.00025433,120]
[310348523,1704487020012,157.58,0.00029671,120]
[310348524,1704487022999,159.37,0.00021926,2]
[310348525,1704487023472,159.37,0.00022029,2]
[310348526,1704487024176,159.37,0.00022133,2]
[310348527,1704487024462,159.37,0.00022237,2]
[310348528,1704487024643,159.37,0.00022341,2]
[310348529,1704487024898,159.37,0.00022445,2]
[310348530,1704487025062,159.37,0.00022549,2]
[310348531,1704487025262,159.37,0.00022653,2]
[310348532,1704487025469,159.37,0.00022756,2]
[310348533,1704487025892,159.37,0.0002286,2]
[310348534,1704487026107,159.37,0.00022964,2]
[310348535,1704487030805,324.49126529,0.00022907,2]
[310348536,1704487060281,7761.79501718,0.00023,2]
[310348537,1704487060581,161.74759808,0.00023,2]
[310348538,1704487062337,284.61415907,0.00023,2]
[310348539,1704487063954,3849.22022627,0.00023,2]
[310348540,1704487064019,523.75608307,0.00023,2]
[310348541,1704487064297,359.97538119,0.00023,2]
[310348542,1704487066629,526.82413509,0.00022999,2]
[310348543,1704487075090,1200.35308665,0.00023,2]
[310348544,1704487075364,343.20843277,0.00023,2]
[310348545,1704487076706,232.54524697,0.00023,2]
[310348546,1704487078429,3319.99308958,0.00023,2]
[310348547,1704487081238,1763.54384261,0.00023,2]
[310348548,1704487083499,158.36302786,0.00023,2]
[310348549,1704487086936,559.19420109,0.00023,2]
[310348550,1704487091115,580.23750387,0.00023,2]
[310348551,1704487095945,196.19698016,0.00023,2]
[310348552,1704487098863,5319.27465842,0.00023,2]
[310348553,1704487099143,4260.79493092,0.00023,2]
[310348554,1704487102157,871.66096946,0.00023,2]
[310348555,1704487102715,557.32738966,0.00023,2]
[310348556,1704487103002,523.28163115,0.00023,2]
[310348557,1704487103834,399.43293878,0.00023,2]
[310348558,1704487106197,840.87003552,0.00022999,2]
[310348559,1704487107173,493.26131547,0.00022999,2]
[310348560,1704487113981,576.84,0.00021762,2]
[310348561,1704487115227,214.99471801,0.00023,2]
[310348562,1704487116739,170.46,0.0001741,2]
[310348563,1704487117884,161.34487123,0.00023,2]
[310348564,1704487133190,359.97538119,0.00023,2]
[310348565,1704487202488,298.52375793,0.00023,2]
[310348566,1704487209982,426.62,0.00019845,2]
[310348567,1704487210027,426.62,0.00022108,2]
[310348568,1704487293590,2960.9948,0.00022901,2]
[310348569,1704487473205,871.66096946,0.00023,2]
[310348570,1704487477869,161.34487123,0.00023,2]
[310348571,1704487478396,214.99471801,0.00023,2]
[310348572,1704487478889,399.43293878,0.00023,2]
[310348573,1704487486765,865.67550467,0.00023,2]
[310348574,1704487489257,840.87003552,0.00023,2]
[310348575,1704487494185,526.82413509,0.00023,2]
[310348576,1704487495025,5087.60778004,0.00023,2]
[310348577,1704487496721,24000.48723218,0.00023,2]
[310348578,1704487500577,5264.33667276,0.00023,2]
[310348579,1704487503745,557.32738966,0.00023,2]
[310348580,1704487518275,359.97538119,0.00023,2]
[310348581,1704487519049,8048.4025,0.00022911,2]
[310348582,1704487519468,3849.22022627,0.00023,2]
[310348583,1704487520157,200.0,0.00021762,2]
[310348584,1704487521308,1910.0088786,0.00023,2]
[310348585,1704487524602,233.75877013,0.00022999,2]
[310348586,1704487525507,196.19698016,0.00023,2]
[310348587,1704487530734,493.26131547,0.00023,2]
[310348588,1704487533813,205.0,0.00022996,2]
[310348589,1704487548324,302.11622322,0.00022881,30]
[310348590,1704487583430,538.52,0.00021762,2]
[310348591,1704487588759,359.97538119,0.00023,2]
[310348592,1704487671266,359.97538119,0.00023,2]
[310348593,1704487729273,871.66096946,0.00023,2]
[310348595,1704487759776,359.97538119,0.00023,2]
[310348596,1704487801560,5087.60778004,0.00023,2]
[310348597,1704487809004,214.99471801,0.00023,2]
[310348598,1704487810720,526.82413509,0.00023,2]
[310348599,1704487819324,24000.48723218,0.00023,2]
[310348600,1704487823469,399.43293878,0.00023,2]
[310348601,1704487826655,200.84028538,0.00022885,2]
[310348602,1704487829320,865.67550467,0.00023,2]
[310348610,1704487831648,-559.19420109,0.00023001,2]
[310348611,1704487831659,-3078.94089262,0.00023001,2]
[310348612,1704487831677,-2020.35943319,0.00023001,2]
[310348613,1704487831832,-219.97433261,0.00023001,2]
[310348614,1704487831843,-76.90281181,0.00023032,2]
[310348627,1704487837528,-359.97538119,0.00023031,2]
[310348628,1704487837538,-81.20718819,0.00023032,2]
[310348629,1704487837548,-193.01,0.000231,2]
[310348630,1704487837557,-623.94741812,0.00023188,2]
[310348631,1704487837567,-158.11,0.00023213,2]
[310348632,1704487837577,-180.0,0.00023288,2]
[310348633,1704487837587,-228.32110806,0.00023288,2]
[310348634,1704487837596,-295.9555104,0.00023288,2]
[310348635,1704487837606,-158.11,0.00023394,2]
[310348636,1704487837616,-16.30197093,0.00023575,2]
[310348637,1704487837628,-476.95934454,0.00023575,2]
[310348638,1704487837639,-158.11,0.00023576,2]
[310348639,1704487837648,-59.09149283,0.00023757,2]
[310348640,1704487837691,-99.01850717,0.00023757,2]
[310348641,1704487837701,-1910.0088786,0.00023934,2]
[310348642,1704487837711,-158.11,0.00023938,2]
[310348643,1704487837721,-383.95,0.00024139,2]
[310348644,1704487837731,-576.84,0.00024483,2]
[310348645,1704487837741,-538.52,0.00024483,2]
[310348646,1704487837750,-300.0,0.000249,2]
[310348647,1704487837760,-155.2,0.00025325,2]
[310348648,1704487837770,-162.78,0.00025427,2]
[310348649,1704487837779,-514.40879808,0.0002552,2]
[310348650,1704487837788,-205.11,0.00025568,2]
[310348651,1704487837798,-254.37,0.00025808,2]
[310348652,1704487837807,-7765.86,0.00025808,2]
[310348653,1704487837818,-471.9154513,0.00025847,2]
[310348654,1704487837828,-250.0,0.00025881,2]
[310348655,1704487837837,-200.0,0.00025902,2]
[310348656,1704487837846,-279.32,0.00025911,2]
[310348657,1704487837857,-306.97180835,0.00026044,2]
[310348658,1704487837867,-11388.57606159,0.00026046,2]
[310348659,1704487837877,-735.53,0.00026047,2]
[310348660,1704487837887,-150.0,0.00026079,2]
[310348661,1704487837897,-2982.0,0.000262,2]
[310348662,1704487837907,-24680.9313647,0.000262,2]
[310348663,1704487837921,-10193.0686353,0.000262,2]
[310348664,1704487837930,-383.95,0.00026403,2]
[310348665,1704487837940,-254.37,0.00026787,2]
[310348666,1704487837950,-1250.0,0.00027,3]
[310348667,1704487837960,-299.89487487,0.00027061,2]
[310348668,1704487837969,-218.79127324,0.00027203,2]
[310348669,1704487837982,-358.04872676,0.00027203,2]
[310348671,1704487837991,-538.52,0.00027203,2]
[310348673,1704487838001,-177.50358888,0.00027369,2]
[310348674,1704487838010,-250.0,0.00027397,2]
[310348675,1704487838020,-163.89,0.00027397,2]
[310348676,1704487838030,-994.39351,0.00027397,7]
[310348677,1704487838039,-250.0,0.000274,2]
[310348678,1704487838049,-878.43425111,0.00027452,2]
[310348679,1704487838058,-163.89,0.00027556,2]
[310348680,1704487838068,-163.89,0.00027714,2]
[310348681,1704487838078,-254.37,0.00027765,2]
[310348682,1704487838087,-163.89,0.00027872,2]
[310348683,1704487838097,-155.0,0.00027899,2]
[310348685,1704487838107,-655.21,0.00027945,2]
[310348687,1704487838116,-363.1,0.00027945,2]
[310348689,1704487838126,-216.96084575,0.00028,2]
[310348691,1704487838135,-163.89,0.0002803,2]
[310348694,1704487838145,-163.89,0.00028189,2]
[310348695,1704487838155,-163.89,0.00028347,2]
[310348696,1704487838165,-163.89,0.00028505,2]
[310348697,1704487838174,-387.83002766,0.000286,2]
[310348698,1704487838184,-163.89,0.00028664,2]
[310348699,1704487838193,-383.95,0.00028667,2]
[310348700,1704487838203,-254.37,0.00028744,2]
[310348701,1704487838212,-556.98887233,0.00028753,2]
[310348702,1704487838222,-5305.8572,0.00028798,2]
[310348703,1704487838232,-936.87747987,0.000288,2]
[310348704,1704487838241,-162.51710283,0.000288,4]
[310348705,1704487838251,-163.89,0.00028822,2]
[310348706,1704487838261,-214.99471801,0.00028868,2]
[310348707,1704487838272,-195.95112628,0.00028895,2]
[310348708,1704487838282,-233.62449319,0.00028895,2]
[310348709,1704487838291,-3846.80508323,0.00028896,2]
[310348710,1704487838301,-625.08124148,0.00028897,2]
[310348711,1704487838314,-1028.56042736,0.00028897,2]
[310348712,1704487838335,-467.5488857,0.00028897,2]
[310348713,1704487838347,-10494.92675936,0.00028897,2]
[310348714,1704487838357,-161.68229368,0.00028897,2]
[310348715,1704487838368,-523.56841679,0.00028897,2]
[310348716,1704487838377,-284.49340479,0.00028897,2]
[310348717,1704487838387,-343.06569975,0.00028897,2]
[310348718,1704487838398,-232.46308765,0.00028897,2]
[310348719,1704487838407,-1728.20414092,0.00028897,2]
[310348720,1704487838417,-1126.59735648,0.00028897,2]
[310348721,1704487838427,-286.09284471,0.00028897,2]
[310348722,1704487838437,-158.28325994,0.00028897,2]
[310348723,1704487838447,-640.71120406,0.00028897,2]
[310348724,1704487838457,-282.07989329,0.00028897,2]
[310348725,1704487838466,-873.21057452,0.00028897,2]
[310348726,1704487838476,-161.24977345,0.00028897,2]
[310348727,1704487838486,-840.40328055,0.00028897,2]
[310348728,1704487838495,-863.27028027,0.00028897,2]
[310348729,1704487838505,-5084.33981992,0.00028897,2]
[310348730,1704487838514,-526.42142785,0.00028897,2]
[310348731,1704487838524,-471.91614267,0.00028898,2]
[310348732,1704487838534,-207.2278993,0.00028898,2]
[310348733,1704487838543,-7756.27785889,0.00028898,2]
[310348734,1704487838553,-675.0,0.00028899,5]
[310348735,1704487838563,-152603.90199801,0.00028899,2]
[310348736,1704487839006,-759947.49984055,0.00028899,2]
[310348737,1704487839021,-623.31486525,0.00028899,2]
[310348738,1704487839050,-8925.59572411,0.00028899,2]
[310348739,1704487839062,-325.95527504,0.00028899,2]
[310348740,1704487839087,-131837.65377084,0.00028899,2]
[310348741,1704487839096,-245000.0,0.000289,2]
[310348742,1704487839107,-1300.0,0.00029,3]
[310348743,1704487839116,-938.33,0.00029009,2]
[310348744,1704487839127,-400.46,0.00029009,2]
[310348745,1704487839137,-938.33,0.00029009,2]